bitfinex/quotes_BTCUSD_20220211
["timestamp","ask_amount","ask_price","bid_price","bid_amount"]
[1644601766975,0.05,43570.0,43566.0,0.05739]
[1644601767375,0.2876786,43568.0,43566.0,0.05739]
[1644601768575,0.373158,43567.0,43564.0,0.00067969]
[1644601768778,0.5727,43565.0,43564.0,0.00067969]
[1644601768976,0.5727,43565.0,43553.0,0.18312714]
[1644601768977,1.373158,43564.0,43553.0,0.18312714]
[1644601769179,0.70008464,43558.0,43551.0,0.18312714]
[1644601769377,0.368958,43557.0,43551.0,0.18312714]
[1644601769577,0.368958,43557.0,43542.0,0.20650097]
[1644601769578,0.32309735,43548.0,43542.0,0.20650097]
[1644601769776,0.323158,43547.0,43542.0,0.20650097]
[1644601769976,0.38051935,43548.0,43542.0,0.20650097]
[1644601770460,0.057422,43548.0,43542.0,0.20650097]
[1644601771056,0.05742188,43547.0,43542.0,0.20650097]
[1644601771258,0.11483988,43547.0,43543.0,0.057418]
[1644601771458,0.11483988,43547.0,43543.0,0.05734677]
[1644601771861,0.17226188,43547.0,43543.0,0.05734677]
[1644601772260,0.17226188,43547.0,43540.0,0.49759858]
[1644601772261,0.057413,43551.0,43547.0,0.057411]
[1644601772462,0.0958,43552.0,43548.0,0.306656]
[1644601773058,0.0958,43552.0,43548.0,0.30733541]
[1644601773259,0.0958,43552.0,43549.0,0.61087852]
[1644601773660,0.05,43552.0,43549.0,0.28772952]
[1644601773860,0.05767834,43555.0,43550.0,0.323158]
[1644601774078,0.05740963,43553.0,43550.0,0.323158]
[1644601774677,0.05767797,43553.0,43550.0,0.323158]
[1644601774879,0.00026834,43553.0,43550.0,0.323158]
[1644601775078,0.05,43554.0,43550.0,0.323158]
[1644601775277,0.00026834,43555.0,43549.0,0.34514052]
[1644601775478,0.32055984,43556.0,43549.0,0.34581993]
[1644601775678,0.00026834,43555.0,43550.0,0.323158]
[1644601775876,0.05741,43553.0,43550.0,0.323158]
[1644601776078,0.43538284,43556.0,43550.0,0.323158]
[1644601776079,0.26566022,43552.0,43550.0,0.323158]
[1644601776277,0.28869282,43555.0,43550.0,0.323158]
[1644601776478,0.00026834,43554.0,43550.0,0.323158]
[1644601776680,0.28896116,43555.0,43550.0,0.323158]
[1644601776879,0.057413,43552.0,43550.0,0.323158]
[1644601777082,0.11466898,43552.0,43548.0,0.323158]
[1644601777279,0.16466898,43552.0,43548.0,0.323158]
[1644601777928,0.26053141,43551.0,43548.0,0.00066351]
[1644601778127,0.64478345,43551.0,43548.0,0.00066351]
[1644601778527,0.26053141,43551.0,43548.0,0.00066351]
[1644601778727,0.25999226,43551.0,43548.0,0.00066351]
[1644601778929,0.05023838,43548.0,43544.0,0.08854438]
[1644601779127,0.10765838,43548.0,43547.0,0.00066351]
[1644601779730,0.36950751,43548.0,43547.0,0.00066351]
[1644601780131,0.42692818,43548.0,43544.0,0.05]
[1644601780328,0.42692818,43548.0,43545.0,0.00066352]
[1644601781329,0.11484714,43547.0,43542.0,0.05]
[1644601781572,0.057423,43546.0,43544.0,0.00066404]
[1644601781872,0.11484519,43546.0,43544.0,0.00066404]
[1644601782471,0.11484519,43546.0,43542.0,0.05]
[1644601782672,0.11484519,43546.0,43543.0,0.05808504]
[1644601783672,0.11484519,43546.0,43543.0,0.057421]
[1644601784876,0.05742219,43546.0,43543.0,0.057421]
[1644601785744,0.26862017,43545.0,43542.0,0.0506046]
[1644601785943,0.26862017,43545.0,43542.0,0.0006046]
[1644601785944,0.39936422,43544.0,43542.0,0.0006046]
[1644601786146,0.28724237,43543.0,43533.0,0.05]
[1644601786346,0.057433,43542.0,43541.0,0.00060461]
[1644601786544,0.27226477,43542.0,43541.0,0.00060461]
[1644601786744,0.61217314,43542.0,43541.0,0.00060461]
[1644601786945,0.61217314,43542.0,43533.0,0.04972024]
[1644601787345,0.057432,43540.0,43539.0,0.29589735]
[1644601787548,0.11486321,43540.0,43539.0,0.29589735]
[1644601788344,0.11486321,43540.0,43537.0,0.057429]
[1644601788544,0.3807686,43540.0,43537.0,0.057429]
[1644601788745,0.3807686,43540.0,43533.0,0.05033418]
[1644601788746,0.05743264,43538.0,43533.0,0.05033418]
[1644601788948,0.057435,43537.0,43533.0,0.05033418]
[1644601789676,0.057435,43537.0,43536.0,0.37016514]
[1644601789876,0.0574331,43536.0,43533.0,0.05033418]
[1644601790878,0.05619437,43536.0,43535.0,0.29949944]
[1644601792279,0.05619437,43536.0,43533.0,0.05032528]
[1644601792681,0.28192262,43535.0,43533.0,0.05032528]
[1644601793134,0.05619437,43536.0,43533.0,0.05032528]
[1644601793342,0.323158,43535.0,43533.0,0.04972024]
[1644601793537,0.3,43534.0,43533.0,0.04972024]
[1644601793736,0.483863,43534.0,43532.0,0.00060505]
[1644601793935,0.323158,43533.0,43532.0,0.00060505]
[1644601794140,0.70822082,43533.0,43532.0,0.00060505]
[1644601794337,0.38506282,43533.0,43532.0,0.00060505]
[1644601794538,0.38506282,43533.0,43526.0,0.39689055]
[1644601794539,0.75822082,43533.0,43526.0,0.39689055]
[1644601794737,0.057447,43532.0,43526.0,0.39689055]
[1644601795137,0.05744619,43531.0,43526.0,0.39689055]
[1644601795540,0.05744619,43531.0,43526.0,0.45433355]
[1644601795736,0.05744619,43531.0,43527.0,0.05]
[1644601797178,0.05744619,43531.0,43528.0,0.057438]
[1644601797380,0.05744619,43531.0,43527.0,0.00060657]
[1644601798179,0.32260879,43531.0,43526.0,0.39689055]
[1644601798379,0.32260879,43531.0,43527.0,0.00060657]
[1644601798380,0.05744619,43531.0,43527.0,0.00060657]
[1644601798579,0.17233633,43530.0,43527.0,0.00060657]
[1644601799281,0.05744533,43530.0,43527.0,0.057443]
[1644601800340,0.05744168,43531.0,43527.0,0.057443]
[1644601800532,0.057444,43529.0,43527.0,0.057443]
[1644601802528,0.26266094,43532.0,43527.0,0.057443]
[1644601802729,0.057441,43530.0,43527.0,0.057443]
[1644601803132,0.057441,43530.0,43527.0,0.05804845]
[1644601804177,0.057441,43530.0,43527.0,0.057443]
[1644601804377,0.26431962,43529.0,43527.0,0.057443]
[1644601804581,0.323158,43528.0,43526.0,0.00060547]
[1644601804787,0.38538858,43529.0,43526.0,0.00060547]
[1644601804788,0.6328671,43527.0,43526.0,0.00060547]
[1644601805181,0.6828671,43527.0,43526.0,0.00060547]
[1644601805382,1.01483058,43527.0,43525.0,0.0011]
[1644601805581,0.27838768,43526.0,43525.0,0.0011]
[1644601805982,0.60154568,43526.0,43525.0,0.0011]
[1644601806182,0.323158,43526.0,43525.0,0.0011]
[1644601806381,0.05,43527.0,43525.0,0.0011]
[1644601806382,0.373158,43527.0,43525.0,0.0011]
[1644601806782,0.323158,43527.0,43525.0,0.0011]
[1644601807384,0.05,43528.0,43525.0,0.0011]
[1644601808230,0.323158,43527.0,43525.0,0.0011]
[1644601808433,0.05,43528.0,43525.0,0.0011]
[1644601808630,0.323158,43527.0,43525.0,0.0011]
[1644601808830,0.05,43528.0,43525.0,0.0011]
[1644601809431,0.22234944,43529.0,43525.0,0.06677676]
[1644601809432,0.17234944,43529.0,43525.0,0.06677676]
[1644601809633,0.1191,43536.0,43527.0,0.323243]
[1644601809833,0.057435,43532.0,43528.0,0.30699]
[1644601810032,0.057435,43532.0,43526.0,0.04650891]
[1644601810238,0.057435,43532.0,43530.0,0.057433]
[1644601811233,0.057435,43532.0,43528.0,0.31501306]
[1644601811437,0.057435,43532.0,43528.0,0.31440763]
[1644601811682,0.057435,43532.0,43529.0,0.00060542]
[1644601811882,0.057445,43531.0,43529.0,0.00060542]
[1644601812083,0.11488968,43531.0,43529.0,0.00060542]
[1644601812284,0.38401923,43531.0,43529.0,0.00060542]
[1644601812684,0.057444,43530.0,43528.0,0.057445]
[1644601812884,0.057444,43530.0,43528.0,0.05805043]
[1644601812885,0.25721604,43529.0,43528.0,0.05805043]
[1644601813485,0.11488815,43530.0,43528.0,0.05805043]
[1644601813885,0.057449,43529.0,43526.0,0.34466366]
[1644601814189,0.114898,43529.0,43527.0,0.00060544]
[1644601814586,0.29171507,43528.0,43527.0,0.00060544]
[1644601814986,0.29171507,43528.0,43525.0,0.0011]
[1644601814987,0.55992792,43528.0,43525.0,0.0011]
[1644601815187,0.323244,43527.0,43525.0,0.00170546]
[1644601815435,0.3187037,43526.0,43525.0,0.00170546]
[1644601816332,0.3187037,43526.0,43525.0,0.0011]
[1644601816333,0.4187037,43526.0,43525.0,0.0011]
[1644601817329,0.3187037,43526.0,43525.0,0.0011]
[1644601817531,0.6419477,43526.0,43525.0,0.0011]
[1644601817728,0.3187037,43526.0,43525.0,0.0011]
[1644601817930,0.38675256,43527.0,43525.0,0.0011]
[1644601818329,0.58567562,43526.0,43525.0,0.0011]
[1644601818531,0.26243162,43526.0,43525.0,0.0011]
[1644601818730,0.58567562,43526.0,43525.0,0.0011]
[1644601818934,0.26243162,43526.0,43525.0,0.0011]
[1644601819384,0.323244,43527.0,43525.0,0.0011]
[1644601819580,0.057449,43529.0,43525.0,0.0011]
[1644601819781,0.057449,43529.0,43525.0,0.2951968]
[1644601819980,0.057449,43529.0,43525.0,0.29610494]
[1644601820381,0.057449,43529.0,43526.0,0.65804211]
[1644601820581,0.057449,43529.0,43526.0,0.71549011]
[1644601820980,0.323244,43528.0,43526.0,0.71549011]
[1644601821383,0.057449,43529.0,43526.0,0.71549011]
[1644601822379,0.057449,43529.0,43527.0,0.2940968]
[1644601823233,0.057449,43529.0,43526.0,0.71549011]
[1644601823634,0.057449,43529.0,43526.0,0.71610412]
[1644601824436,0.057449,43529.0,43527.0,0.2940968]
[1644601824834,0.114886,43530.0,43528.0,0.00090545]
[1644601825035,0.17233096,43530.0,43528.0,0.05834945]
[1644601825435,0.114886,43530.0,43528.0,0.35244625]
[1644601825836,0.114886,43530.0,43528.0,0.05834945]
[1644601826446,0.114886,43530.0,43529.0,0.360387]
[1644601826688,0.057442,43532.0,43530.0,0.0240155]
[1644601826889,0.057442,43532.0,43530.0,0.47589575]
[1644601827086,0.057442,43532.0,43530.0,0.74789601]
[1644601827288,0.057442,43532.0,43530.0,0.42465201]
[1644601827486,0.114872,43533.0,43531.0,0.24062252]
[1644601827888,0.114872,43533.0,43532.0,0.29417783]
[1644601828487,0.114872,43533.0,43531.0,0.24062252]
[1644601829989,0.114872,43533.0,43531.0,0.24162179]
[1644601831234,0.114872,43533.0,43531.0,0.5848223]
[1644601832236,0.114872,43533.0,43532.0,0.38038337]
[1644601833036,0.11429772,43533.0,43532.0,0.38038337]
[1644601834481,0.11429772,43533.0,43532.0,0.03718286]
[1644601834783,0.11429772,43533.0,43532.0,0.03818112]
[1644601835381,0.11429772,43533.0,43532.0,0.38151145]
[1644601836183,0.11429772,43533.0,43532.0,0.03818112]
[1644601836983,0.11429772,43533.0,43532.0,0.38152332]
[1644601840038,0.11429772,43533.0,43532.0,0.00099826]
[1644601842780,0.11429772,43533.0,43532.0,0.2953202]
[1644601842982,0.11429772,43533.0,43532.0,0.00099826]
[1644601843382,0.11429772,43533.0,43532.0,0.29532036]
[1644601843785,0.75983901,43533.0,43532.0,0.00099826]
[1644601843985,0.75983901,43533.0,43530.0,0.0240155]
[1644601843986,0.84585729,43531.0,43530.0,0.0240155]
[1644601844186,0.84585729,43531.0,43530.0,0.02350068]
[1644601844387,0.94585729,43531.0,43530.0,0.02350068]
[1644601844786,1.26270693,43531.0,43530.0,0.02350068]
[1644601845186,1.26270693,43531.0,43530.0,0.02286695]
[1644601847031,1.16270693,43531.0,43530.0,0.02286695]
[1644601849383,1.14961569,43531.0,43530.0,0.02286695]
[1644601851490,0.83219178,43531.0,43530.0,0.02286695]
[1644601851791,0.50894778,43531.0,43530.0,0.02286695]
[1644601852689,0.50894778,43531.0,43530.0,0.37835898]
[1644601852944,0.50894778,43531.0,43530.0,0.02286695]
[1644601853142,0.83219178,43531.0,43530.0,0.02286695]
[1644601853339,0.55894778,43531.0,43530.0,0.02286695]
[1644601853942,0.91076914,43531.0,43530.0,0.02286695]
[1644601854142,1.53624062,43531.0,43530.0,0.02286695]
[1644601854541,1.53624062,43531.0,43530.0,6.695e-05]
[1644601854941,0.323244,43529.0,43528.0,0.00064949]
[1644601855341,0.373244,43529.0,43528.0,0.00064949]
[1644601855943,0.323244,43527.0,43525.0,0.0011]
[1644601856142,0.323244,43527.0,43525.0,0.00109997]
[1644601856143,0.95,43526.0,43525.0,0.00109997]
[1644601856584,1.24379861,43526.0,43525.0,0.00109997]
[1644601857783,1.56704261,43526.0,43525.0,0.00109997]
[1644601857983,1.51330261,43526.0,43525.0,0.00109997]
[1644601858188,1.56704261,43526.0,43525.0,0.00109997]
[1644601858386,1.51330261,43526.0,43525.0,0.00109997]
[1644601858584,1.56704261,43526.0,43525.0,0.00109997]
[1644601859184,1.51330261,43526.0,43525.0,0.00109997]
[1644601859385,1.56704261,43526.0,43525.0,0.00109997]
[1644601859684,1.24379861,43526.0,43525.0,0.00109997]
[1644601860341,1.56704261,43526.0,43525.0,0.00109997]
[1644601860741,1.24379861,43526.0,43525.0,0.00109997]
[1644601860936,1.28959861,43526.0,43525.0,0.00109997]
[1644601861542,1.05,43524.0,43521.0,0.0134959]
[1644601861740,1.05,43524.0,43519.0,0.0022]
[1644601861741,0.76197635,43523.0,43519.0,0.0022]
[1644601861938,0.323244,43521.0,43520.0,0.00129592]
[1644601862140,0.11495358,43520.0,43516.0,0.0033]
[1644601862440,0.34691372,43518.0,43516.0,0.0033]
[1644601862637,0.323244,43517.0,43516.0,0.0033]
[1644601862838,0.43071161,43517.0,43516.0,0.0033]
[1644601863939,0.72902767,43517.0,43516.0,0.0033]
[1644601864585,0.43071161,43517.0,43516.0,0.0033]
[1644601865789,0.69233817,43517.0,43516.0,0.0033]
[1644601869330,0.79233817,43517.0,43516.0,0.0033]
[1644601869631,0.84233817,43517.0,43516.0,0.0033]
[1644601870330,0.58071161,43517.0,43516.0,0.0033]
[1644601870532,0.43071161,43517.0,43516.0,0.0033]
[1644601870930,0.38071161,43517.0,43516.0,0.0033]
[1644601871334,0.05746761,43517.0,43516.0,0.0033]
[1644601871584,0.38071161,43517.0,43516.0,0.0033]
[1644601871784,0.05746761,43517.0,43516.0,0.0033]
[1644601874290,0.057477,43519.0,43516.0,0.326544]
[1644601874489,0.057477,43519.0,43517.0,0.352963]
[1644601874689,0.12,43524.0,43517.0,0.0458]
[1644601874888,0.12,43524.0,43517.0,0.0958]
[1644601875339,0.12,43524.0,43519.0,0.057454]
[1644601875532,0.68245794,43525.0,43520.0,0.0458]
[1644601875933,0.057452,43523.0,43520.0,0.0458]
[1644601876133,0.057452,43523.0,43520.0,0.28054499]
[1644601876735,0.057452,43523.0,43520.0,0.0458]
[1644601878035,0.11490773,43523.0,43520.0,0.0458]
[1644601878435,0.17236573,43523.0,43520.0,0.0458]
[1644601878940,0.32039303,43522.0,43519.0,0.00059777]
[1644601879390,0.37785603,43522.0,43519.0,0.00059777]
[1644601879985,0.49278097,43522.0,43518.0,0.00019592]
[1644601880187,0.05747205,43520.0,43518.0,0.00059778]
[1644601880387,0.61609069,43519.0,43518.0,0.00059778]
[1644601880594,0.00099964,43517.0,43516.0,0.0033]
[1644601880788,0.28322702,43517.0,43516.0,0.0033]
[1644601880984,0.70963035,43517.0,43516.0,0.0033]
[1644601881185,1.03287435,43517.0,43516.0,0.0033]
[1644601881787,1.08287435,43517.0,43516.0,0.0033]
[1644601881986,1.1403465,43517.0,43516.0,0.0033]
[1644601883731,1.0903465,43517.0,43516.0,0.0033]
[1644601884134,1.08112939,43517.0,43516.0,0.0033]
[1644601885435,1.13112939,43517.0,43516.0,0.0033]
[1644601885637,1.373244,43516.0,43515.0,0.0011]
[1644601885835,1.05,43515.0,43514.0,0.00283455]
[1644601886034,1.38858851,43515.0,43514.0,0.0022]
[1644601886234,1.48858851,43515.0,43514.0,0.0022]
[1644601887289,1.15,43515.0,43514.0,0.0022]
[1644601887487,0.1,43515.0,43514.0,0.0022]
[1644601887886,0.523244,43516.0,43514.0,0.0022]
[1644601888587,0.78553918,43516.0,43514.0,0.0022]
[1644601888788,0.52293154,43516.0,43514.0,0.0022]
[1644601889587,0.78628448,43516.0,43514.0,0.0022]
[1644601890638,0.26477421,43515.0,43514.0,0.0022]
[1644601891937,0.58801821,43515.0,43514.0,0.0022]
[1644601892138,0.26477421,43515.0,43514.0,0.0022]
[1644601892337,0.36477421,43515.0,43514.0,0.0022]
[1644601893338,0.68801821,43515.0,43514.0,0.0022]
[1644601893638,0.36477421,43515.0,43514.0,0.0022]
[1644601894292,0.68801821,43515.0,43514.0,0.0022]
[1644601894488,0.53427821,43515.0,43514.0,0.0022]
[1644601894689,0.63427821,43515.0,43514.0,0.0022]
[1644601895291,0.36477421,43515.0,43514.0,0.0022]
[1644601895589,0.1,43515.0,43514.0,0.0022]
[1644601895789,0.42293154,43516.0,43514.0,0.0022]
[1644601895790,0.52293154,43516.0,43514.0,0.0022]
[1644601896088,0.52293154,43516.0,43514.0,0.00239559]
[1644601897490,0.27048764,43515.0,43514.0,0.00239559]
[1644601898747,0.59373164,43515.0,43514.0,0.00239559]
[1644601898945,0.37048764,43515.0,43514.0,0.00239559]
[1644601899948,1.05,43514.0,43512.0,0.00242871]
[1644601900146,0.269504,43513.0,43512.0,0.00242871]
[1644601900348,0.54406728,43513.0,43512.0,0.00242871]
[1644601900548,0.59406728,43513.0,43512.0,0.00179559]
[1644601900748,0.69406728,43513.0,43512.0,0.00179559]
[1644601902095,0.469504,43513.0,43512.0,0.00179559]
[1644601902494,0.469504,43513.0,43499.0,0.3477422]
[1644601902495,1.107476,43511.0,43499.0,0.3477422]
[1644601902695,1.107476,43511.0,43499.0,0.0044]
[1644601902696,0.05,43505.0,43499.0,0.0044]
[1644601902893,0.46311401,43508.0,43498.0,0.0044]
[1644601902894,0.05,43502.0,43498.0,0.0044]
[1644601903096,0.05,43502.0,43496.0,0.0022]
[1644601903097,0.719044,43501.0,43497.0,0.0022]
[1644601903292,1.05,43497.0,43495.0,0.0033]
[1644601903492,0.74675112,43496.0,43495.0,0.0033]
[1644601903692,1.373244,43495.0,43491.0,0.0133]
[1644601903892,0.0458,43494.0,43491.0,0.0133]
[1644601904292,0.369044,43494.0,43491.0,0.0133]
[1644601904492,0.269504,43493.0,43491.0,0.0127]
[1644601904697,0.315304,43493.0,43491.0,0.0127]
[1644601904891,0.47280315,43493.0,43491.0,0.0127]
[1644601905091,0.52280315,43493.0,43491.0,0.0127]
[1644601905343,0.26597482,43492.0,43491.0,0.0127]
[1644601905538,1.05,43490.0,43484.0,0.0022]
[1644601905738,0.623244,43489.0,43484.0,0.0022]
[1644601905939,0.05,43487.0,43483.0,0.00253192]
[1644601906138,1.05,43485.0,43475.0,0.0011]
[1644601906339,0.34346058,43477.0,43475.0,0.0011]
[1644601906538,0.323244,43476.0,43475.0,0.0011]
[1644601906738,0.430771,43476.0,43475.0,0.0011]
[1644601907138,0.373244,43476.0,43475.0,0.0011]
[1644601907737,0.62297183,43476.0,43475.0,0.0011]
[1644601907938,1.092706,43476.0,43475.0,0.0011]
[1644601908139,1.41595,43476.0,43475.0,0.0011]
[1644601908544,1.409888,43476.0,43475.0,0.0011]
[1644601908843,1.459888,43476.0,43475.0,0.0011]
[1644601909085,1.459888,43476.0,43475.0,0.0001]
[1644601909485,1.459888,43476.0,43472.0,0.0022]
[1644601909486,0.323244,43475.0,43473.0,0.0006]
[1644601909688,0.29299653,43474.0,43473.0,0.0006]
[1644601910186,0.29299653,43474.0,43469.0,0.0011]
[1644601910187,0.323244,43473.0,43471.0,0.01]
[1644601910388,0.323244,43472.0,43471.0,0.01]
[1644601910687,0.873244,43472.0,43471.0,0.01063007]
[1644601910886,0.973244,43472.0,43471.0,0.01063007]
[1644601911087,0.91545124,43472.0,43471.0,0.01063007]
[1644601911289,1.373244,43471.0,43465.0,0.00362066]
[1644601911489,1.373244,43471.0,43451.0,0.01]
[1644601911490,1.05,43467.0,43451.0,0.01]
[1644601911689,0.323244,43464.0,43451.0,0.01]
[1644601911889,1.05,43463.0,43451.0,0.01]
[1644601912089,0.369044,43462.0,43451.0,0.01]
[1644601912391,0.6297424,43452.0,43451.0,0.01]
[1644601912592,0.6297424,43452.0,43444.0,0.60828876]
[1644601912593,0.623244,43451.0,43444.0,0.60828876]
[1644601912869,0.3064984,43452.0,43446.0,0.323244]
[1644601912870,0.05,43452.0,43446.0,0.323244]
[1644601913060,0.1171,43461.0,43447.0,0.05]
[1644601913061,0.0458,43451.0,43447.0,0.05]
[1644601913260,0.0458,43457.0,43447.0,0.05]
[1644601913460,0.2171,43461.0,43451.0,0.05]
[1644601913661,0.057544,43457.0,43453.0,0.08150716]
[1644601913962,0.0458,43456.0,43453.0,0.08150716]
[1644601914162,0.05,43456.0,43453.0,0.08150716]
[1644601914765,0.115077,43459.0,43453.0,0.08150716]
[1644601914965,0.0450902,43468.0,43458.0,0.08806062]
[1644601915168,0.30601037,43463.0,43453.0,0.11620773]
[1644601915368,0.323244,43462.0,43453.0,0.00116073]
[1644601915764,0.057545,43460.0,43453.0,0.00116073]
[1644601915964,0.05753607,43461.0,43454.0,0.323244]
[1644601915965,0.05754,43461.0,43454.0,0.323244]
[1644601916266,0.32733804,43465.0,43454.0,0.323244]
[1644601916267,0.32666621,43465.0,43457.0,0.308132]
[1644601916465,0.32666621,43465.0,43456.0,0.05]
[1644601916466,0.68113085,43465.0,43461.0,0.18583196]
[1644601916696,0.68180271,43465.0,43455.0,0.00066567]
[1644601916895,0.42733807,43465.0,43456.0,0.05019414]
[1644601917094,0.42733807,43465.0,43457.0,0.29687871]
[1644601917095,0.057528,43464.0,43457.0,0.29687871]
[1644601917297,0.057528,43464.0,43457.0,0.3026523]
[1644601917495,0.057528,43464.0,43459.0,0.05]
[1644601917898,0.11506166,43464.0,43459.0,0.00019414]
[1644601918098,0.057528,43464.0,43458.0,0.00066563]
[1644601918299,0.323244,43462.0,43458.0,0.00066563]
[1644601918497,0.057528,43464.0,43460.0,0.35493392]
[1644601918698,0.057528,43464.0,43461.0,0.323244]
[1644601918898,0.115065,43464.0,43458.0,0.00062541]
[1644601919100,0.115065,43464.0,43460.0,0.00019414]
[1644601919299,0.05,43463.0,43458.0,0.00062541]
[1644601919700,0.115065,43464.0,43458.0,0.00062541]
[1644601919900,0.057528,43464.0,43458.0,0.00062541]
[1644601920101,0.057528,43464.0,43458.0,0.00061025]
[1644601920347,0.057528,43464.0,43458.0,0.00080439]
[1644601920539,0.04737795,43464.0,43461.0,0.07198288]
[1644601920740,0.03624795,43464.0,43461.0,0.07198288]
[1644601921138,0.323244,43463.0,43460.0,0.00019414]
[1644601921338,0.03624795,43464.0,43459.0,0.00019414]
[1644601921538,0.03624795,43464.0,43458.0,0.00019414]
[1644601921737,0.03624795,43464.0,43457.0,0.00120573]
[1644601921738,0.03067795,43464.0,43457.0,0.00120573]
[1644601921937,0.03067795,43464.0,43457.0,0.00101159]
[1644601922338,0.03067795,43464.0,43458.0,0.07409459]
[1644601922638,0.03067795,43464.0,43458.0,0.31890791]
[1644601922837,0.08821595,43464.0,43458.0,0.00019414]
[1644601923044,0.05753859,43463.0,43457.0,0.00101159]
[1644601923239,0.115072,43462.0,43457.0,0.00101159]
[1644601923638,0.05,43461.0,43457.0,0.00101159]
[1644601923841,0.94620226,43460.0,43458.0,0.00019801]
[1644601924088,0.65695963,43459.0,43458.0,0.00039215]
[1644601924289,0.65695963,43459.0,43458.0,0.00019801]
[1644601924491,0.98371868,43459.0,43458.0,0.00039215]
[1644601924689,1.08371868,43459.0,43457.0,0.00101159]
[1644601924892,0.62402608,43458.0,43457.0,0.00101159]
[1644601925089,0.30057708,43458.0,43457.0,0.00019414]
[1644601925291,0.30057708,43458.0,43456.0,0.00019801]
[1644601925292,0.82402608,43458.0,43456.0,0.00019801]
[1644601925594,0.63829434,43457.0,43456.0,0.00019801]
[1644601925791,1.05,43456.0,43444.0,0.26062052]
[1644601925993,0.057554,43451.0,43437.0,0.107554]
[1644601926192,0.057554,43451.0,43448.0,0.0026407]
[1644601927094,0.057554,43451.0,43449.0,0.29489342]
[1644601927496,0.323449,43450.0,43449.0,0.29489342]
[1644601927693,0.323449,43450.0,43449.0,0.38377235]
[1644601927940,0.323449,43450.0,43449.0,0.29489342]
[1644601928340,0.057554,43451.0,43449.0,0.29489342]
[1644601929139,0.323449,43450.0,43449.0,0.29489342]
[1644601929338,0.057554,43451.0,43447.0,0.00019791]
[1644601929540,0.057554,43451.0,43442.0,0.05121706]
[1644601929541,0.59007771,43450.0,43442.0,0.05121706]
[1644601929741,0.323449,43447.0,43442.0,0.04121706]
[1644601929943,0.31144219,43446.0,43442.0,0.04121706]
[1644601930140,0.323169,43445.0,43442.0,0.00121706]
[1644601930341,0.323449,43443.0,43442.0,0.00121706]
[1644601930544,0.68945922,43443.0,43442.0,0.00121706]
[1644601930745,0.523449,43443.0,43442.0,0.00121706]
[1644601930941,0.523503,43443.0,43442.0,0.00121706]
[1644601931341,0.523503,43443.0,43425.0,0.0011]
[1644601931342,1.05,43441.0,43425.0,0.0011]
[1644601931601,0.415161,43440.0,43430.0,0.0022]
[1644601931800,0.381084,43439.0,43430.0,0.0022]
[1644601931995,0.057581,43439.0,43434.0,8.564e-05]
[1644601932197,0.157581,43439.0,43434.0,0.08191074]
[1644601932395,0.33032824,43439.0,43434.0,8.564e-05]
[1644601932795,0.05,43438.0,43434.0,8.564e-05]
[1644601933195,0.057574,43436.0,43434.0,8.564e-05]
[1644601933400,0.057574,43436.0,43434.0,0.00028117]
[1644601933595,0.057574,43436.0,43434.0,0.00019553]
[1644601933797,0.17273465,43436.0,43431.0,0.00638117]
[1644601933997,0.23030765,43436.0,43431.0,0.00638117]
[1644601934197,0.28030765,43436.0,43431.0,0.00638117]
[1644601934398,1.05,43433.0,43425.0,0.0011]
[1644601934600,0.623503,43432.0,43425.0,0.0011]
[1644601934899,0.3752466,43430.0,43425.0,0.0011]
[1644601935097,0.323503,43428.0,43425.0,0.0011]
[1644601935358,0.15759006,43428.0,43425.0,0.0011]
[1644601935548,0.323552,43427.0,43425.0,0.0011]
[1644601935750,0.31018106,43428.0,43421.0,0.06]
[1644601935952,0.057593,43426.0,43421.0,0.06]
[1644601936147,0.05760081,43425.0,43421.0,0.06]
[1644601936348,0.23731648,43424.0,43421.0,0.06]
[1644601936547,0.10760081,43425.0,43418.0,0.00050383]
[1644601936548,0.68068227,43423.0,43418.0,0.00050383]
[1644601936747,0.28128314,43423.0,43414.0,0.36512207]
[1644601937248,0.50409911,43423.0,43419.0,0.07789267]
[1644601937448,0.50409911,43423.0,43414.0,0.36512207]
[1644601937748,0.50409911,43423.0,43421.0,0.3471893]
[1644601937947,0.61930211,43423.0,43421.0,0.3471893]
[1644601938148,0.33801897,43423.0,43421.0,0.3471893]
[1644601938651,0.39561544,43423.0,43421.0,0.3471893]
[1644601938849,0.45321744,43423.0,43421.0,0.3471893]
[1644601939291,0.28801444,43423.0,43421.0,0.3471893]
[1644601939489,0.11519847,43423.0,43421.0,0.3471893]
[1644601939690,0.26529023,43429.0,43421.0,0.3471893]
[1644601939890,0.157587,43434.0,43422.0,0.22671449]
[1644601939891,0.05,43423.0,43422.0,0.22671449]
[1644601940093,0.3,43433.0,43422.0,0.27671449]
[1644601940294,0.1198,43440.0,43425.0,0.05]
[1644601940295,0.057587,43430.0,43425.0,0.05]
[1644601940693,0.057587,43430.0,43425.0,0.05061934]
[1644601941095,0.057587,43430.0,43428.0,0.29421652]
[1644601941492,0.11514855,43436.0,43425.0,0.05061934]
[1644601941794,0.11514855,43436.0,43427.0,0.00019468]
[1644601941795,0.05757577,43433.0,43427.0,0.00019468]
[1644601941995,0.057573,43434.0,43428.0,0.323568]
[1644601942191,0.057573,43434.0,43428.0,0.07754339]
[1644601942392,0.057573,43434.0,43428.0,0.00019324]
[1644601942592,0.057573,43434.0,43427.0,0.3372023]
[1644601942864,0.323568,43432.0,43426.0,0.00019324]
[1644601943054,0.115162,43432.0,43429.0,0.00019467]
[1644601944056,0.115162,43432.0,43426.0,0.00019324]
[1644601944057,0.17274312,43432.0,43426.0,0.00019324]
[1644601944257,0.22274312,43432.0,43428.0,0.00019467]
[1644601944556,0.05,43431.0,43428.0,0.00019467]
[1644601945357,0.107578,43431.0,43427.0,6.269e-05]
[1644601945556,0.16516,43431.0,43427.0,0.0007116]
[1644601946156,0.107578,43431.0,43427.0,0.0007116]
[1644601946359,0.107578,43431.0,43427.0,0.00090484]
[1644601946590,0.107578,43431.0,43427.0,0.00090485]
[1644601946991,0.165159,43431.0,43427.0,0.00090485]
[1644601947192,0.107578,43431.0,43427.0,0.00090485]
[1644601947591,0.107578,43431.0,43427.0,0.0751222]
[1644601947791,0.107578,43431.0,43427.0,0.07577112]
[1644601947991,0.323568,43430.0,43427.0,0.00090485]
[1644601948394,0.107578,43431.0,43427.0,0.00090485]